[Event "*** Titled Tuesday Blitz"]
[Site "Chess.com"]
[Date "2019.12.03"]
[Round "4"]
[White "M1711"]
[Black "LarissaSteenbekkers"]
[Result "1-0"]
[WhiteElo "2518"]
[BlackElo "1767"]
[TimeControl "180+2"]
[EndTime "13:50:11 PST"]
[Termination "M1711 won by resignation"]

1. e4 {[%clk 0:03:00.2]} 1... e6 {[%clk 0:03:00.2]} 2. d4 {[%clk 0:03:01.3]}
2... d5 {[%clk 0:03:00.8]} 3. e5 {[%clk 0:03:02.7]} 3... c5 {[%clk 0:03:00]} 4.
c3 {[%clk 0:03:04.6]} 4... Nc6 {[%clk 0:02:59.9]} 5. Nf3 {[%clk 0:03:06.2]} 5...
Qb6 {[%clk 0:02:59.6]} 6. a3 {[%clk 0:03:07.6]} 6... Nh6 {[%clk 0:02:59.3]} 7.
b4 {[%clk 0:03:08.1]} 7... cxd4 {[%clk 0:02:59.4]} 8. cxd4 {[%clk 0:03:10]} 8...
Nf5 {[%clk 0:03:00]} 9. Be3 {[%clk 0:03:11.7]} 9... f6 {[%clk 0:02:57.7]} 10.
exf6 {[%clk 0:03:09]} 10... gxf6 {[%clk 0:02:56.9]} 11. Bd3 {[%clk 0:03:09.5]}
11... Nxe3 {[%clk 0:02:55.4]} 12. fxe3 {[%clk 0:03:11.4]} 12... Bh6 {[%clk
0:02:54.4]} 13. Qe2 {[%clk 0:03:11.9]} 13... O-O {[%clk 0:02:51.1]} 14. Nc3
{[%clk 0:03:13.2]} 14... Bd7 {[%clk 0:02:45.7]} 15. O-O {[%clk 0:03:12.2]} 15...
Rac8 {[%clk 0:02:43.4]} 16. Na4 {[%clk 0:03:07.4]} 16... Qd8 {[%clk 0:02:40.9]}
17. b5 {[%clk 0:03:02.8]} 17... Na5 {[%clk 0:02:38.9]} 18. Nc5 {[%clk
0:02:56.2]} 18... b6 {[%clk 0:02:37.4]} 19. Na6 {[%clk 0:02:54.7]} 19... Nc4
{[%clk 0:02:35.7]} 20. Bxc4 {[%clk 0:02:51.3]} 20... Rxc4 {[%clk 0:02:34.4]} 21.
a4 {[%clk 0:02:51.9]} 21... e5 {[%clk 0:02:28.6]} 22. Qf2 {[%clk 0:02:46.4]}
22... Rc3 {[%clk 0:02:24.5]} 23. Qg3+ {[%clk 0:02:32.2]} 23... Kh8 {[%clk
0:02:20.8]} 24. dxe5 {[%clk 0:02:33.4]} 24... Rxe3 {[%clk 0:02:15.3]} 25. exf6
{[%clk 0:02:30.2]} 25... Qxf6 {[%clk 0:02:10.8]} 26. Nb4 {[%clk 0:02:24.1]}
26... Re2 {[%clk 0:01:57.9]} 27. Nxd5 {[%clk 0:02:00]} 27... Qb2 {[%clk
0:01:40]} 28. Rab1 {[%clk 0:01:41.3]} 28... Qa2 {[%clk 0:01:29.8]} 29. Nc3
{[%clk 0:01:39.7]} 29... Qc2 {[%clk 0:01:20.3]} 30. Nxe2 {[%clk 0:01:39.7]}
30... Qxe2 {[%clk 0:01:20.3]} 31. Qe5+ {[%clk 0:01:39.5]} 31... Qxe5 {[%clk
0:01:15.7]} 32. Nxe5 {[%clk 0:01:41.4]} 32... Be3+ {[%clk 0:01:15]} 33. Kh1
{[%clk 0:01:42.5]} 1-0

[Event "*** Titled Tuesday Blitz"]
[Site "Chess.com"]
[Date "2019.12.03"]
[Round "4"]
[White "vlad10898"]
[Black "artooon"]
[Result "1/2-1/2"]
[WhiteElo "2686"]
[BlackElo "2802"]
[TimeControl "180+2"]
[EndTime "13:50:18 PST"]
[Termination "Game drawn by repetition"]

1. e4 {[%clk 0:03:01.2]} 1... e5 {[%clk 0:03:00]} 2. Nf3 {[%clk 0:03:02.1]} 2...
Nc6 {[%clk 0:03:01.1]} 3. Bb5 {[%clk 0:03:03.1]} 3... Nf6 {[%clk 0:03:02.2]} 4.
d3 {[%clk 0:03:04.1]} 4... Bc5 {[%clk 0:03:02.7]} 5. Bxc6 {[%clk 0:03:05.1]}
5... dxc6 {[%clk 0:03:00.2]} 6. Nc3 {[%clk 0:03:06.7]} 6... Qe7 {[%clk
0:03:00.2]} 7. Be3 {[%clk 0:03:07.4]} 7... Bd6 {[%clk 0:03:00.3]} 8. h3 {[%clk
0:03:05.4]} 8... Be6 {[%clk 0:03:01.1]} 9. Qe2 {[%clk 0:02:32.3]} 9... Nd7
{[%clk 0:03:01.4]} 10. O-O-O {[%clk 0:02:19.9]} 10... f6 {[%clk 0:03:02.2]} 11.
Nh4 {[%clk 0:02:20]} 11... O-O-O {[%clk 0:03:02.5]} 12. Nf5 {[%clk 0:02:19.1]}
12... Bxf5 {[%clk 0:03:03.2]} 13. exf5 {[%clk 0:02:20.2]} 13... Bc5 {[%clk
0:03:02.2]} 14. Ne4 {[%clk 0:02:20]} 14... Bxe3+ {[%clk 0:02:58.8]} 15. Qxe3
{[%clk 0:02:21.3]} 15... Nb6 {[%clk 0:02:58.9]} 16. g4 {[%clk 0:02:02.2]} 16...
Kb8 {[%clk 0:02:59.8]} 17. Qc5 {[%clk 0:01:57.4]} 17... Qf7 {[%clk 0:02:58.3]}
18. Kb1 {[%clk 0:01:58.2]} 18... Nd5 {[%clk 0:02:57.4]} 19. d4 {[%clk
0:01:41.8]} 19... Rhe8 {[%clk 0:02:43]} 20. Nc3 {[%clk 0:01:30]} 20... exd4
{[%clk 0:02:36.4]} 21. Qxd4 {[%clk 0:01:25.2]} 21... Nxc3+ {[%clk 0:02:36.4]}
22. Qxc3 {[%clk 0:01:26.4]} 22... Rd5 {[%clk 0:02:31.3]} 23. Rd3 {[%clk
0:01:19.8]} 23... Red8 {[%clk 0:02:25.8]} 24. Rhd1 {[%clk 0:01:20.2]} 24... Qe7
{[%clk 0:02:26.9]} 25. b3 {[%clk 0:01:03.5]} 25... Rxd3 {[%clk 0:01:58.8]} 26.
Rxd3 {[%clk 0:01:03.5]} 26... Rxd3 {[%clk 0:01:59]} 27. Qxd3 {[%clk 0:01:04.9]}
27... b6 {[%clk 0:01:55.4]} 28. Qc4 {[%clk 0:01:03.8]} 28... Qe1+ {[%clk
0:01:51]} 29. Kb2 {[%clk 0:01:04.7]} 29... Kb7 {[%clk 0:01:47.9]} 30. Qf7 {[%clk
0:00:59.5]} 30... Qe5+ {[%clk 0:01:49]} 31. Kb1 {[%clk 0:01:00.9]} 31... Qe1+
{[%clk 0:01:49.3]} 32. Kb2 {[%clk 0:01:02.2]} 32... Qe5+ {[%clk 0:01:50.4]} 33.
Kb1 {[%clk 0:01:03.5]} 33... Qe1+ {[%clk 0:01:51.2]} 34. Kb2 {[%clk 0:01:05]}
1/2-1/2

[Event "*** Titled Tuesday Blitz"]
[Site "Chess.com"]
[Date "2019.12.03"]
[Round "4"]
[White "Gabrielian_Artur"]
[Black "bait_or_mate"]
[Result "1-0"]
[WhiteElo "2798"]
[BlackElo "2548"]
[TimeControl "180+2"]
[EndTime "13:50:50 PST"]
[Termination "Gabrielian_Artur won by resignation"]

1. e4 {[%clk 0:03:01.9]} 1... c6 {[%clk 0:03:01.2]} 2. d4 {[%clk 0:03:01.5]}
2... d5 {[%clk 0:03:02.8]} 3. Nd2 {[%clk 0:03:03.1]} 3... dxe4 {[%clk
0:03:04.3]} 4. Nxe4 {[%clk 0:03:04.3]} 4... Bf5 {[%clk 0:03:05.9]} 5. Ng3 {[%clk
0:03:04.6]} 5... Bg6 {[%clk 0:03:07.5]} 6. c3 {[%clk 0:03:06.1]} 6... Nf6 {[%clk
0:03:08.5]} 7. Nh3 {[%clk 0:03:06.3]} 7... Qa5 {[%clk 0:02:59.6]} 8. Qb3 {[%clk
0:03:00.9]} 8... Qb6 {[%clk 0:02:57.1]} 9. Nf4 {[%clk 0:02:59.7]} 9... Nbd7
{[%clk 0:02:55]} 10. h4 {[%clk 0:02:59.3]} 10... a6 {[%clk 0:02:17.1]} 11. Qxb6
{[%clk 0:02:50.2]} 11... Nxb6 {[%clk 0:02:19]} 12. h5 {[%clk 0:02:51.5]} 12...
Be4 {[%clk 0:02:15.3]} 13. Nxe4 {[%clk 0:02:49]} 13... Nxe4 {[%clk 0:02:17.2]}
14. Bd3 {[%clk 0:02:49.7]} 14... Nf6 {[%clk 0:02:17.9]} 15. h6 {[%clk
0:02:22.9]} 15... g6 {[%clk 0:02:17.1]} 16. Nh3 {[%clk 0:02:12.5]} 16... e6
{[%clk 0:02:14.8]} 17. Ng5 {[%clk 0:02:10.4]} 17... Be7 {[%clk 0:02:10.3]} 18.
f3 {[%clk 0:02:02.2]} 18... O-O {[%clk 0:01:37.8]} 19. Bd2 {[%clk 0:02:00.1]}
19... Rad8 {[%clk 0:01:26.3]} 20. O-O-O {[%clk 0:01:57.2]} 20... c5 {[%clk
0:01:18.3]} 21. dxc5 {[%clk 0:01:49]} 21... Bxc5 {[%clk 0:01:15.2]} 22. Ne4
{[%clk 0:01:40]} 22... Nxe4 {[%clk 0:01:16.2]} 23. Bxe4 {[%clk 0:01:40.7]} 23...
Rd7 {[%clk 0:01:17.5]} 24. Bg5 {[%clk 0:01:33.6]} 24... f6 {[%clk 0:01:13.6]}
25. Rxd7 {[%clk 0:01:25.9]} 25... Nxd7 {[%clk 0:01:15.5]} 26. Rd1 {[%clk
0:01:26.1]} 26... Nb6 {[%clk 0:01:03.1]} 27. Bf4 {[%clk 0:01:19.6]} 27... e5
{[%clk 0:01:04.2]} 28. Bd2 {[%clk 0:01:14.6]} 28... Rb8 {[%clk 0:01:01.4]} 29.
b4 {[%clk 0:01:12.8]} 29... Be7 {[%clk 0:01:02.4]} 30. Be3 {[%clk 0:01:13.5]}
30... Nc4 {[%clk 0:01:01.4]} 31. Bd5+ {[%clk 0:01:14.4]} 1-0

[Event "*** Titled Tuesday Blitz"]
[Site "Chess.com"]
[Date "2019.12.03"]
[Round "4"]
[White "Kislov_Oleg"]
[Black "2165149677570"]
[Result "1-0"]
[WhiteElo "2511"]
[BlackElo "2337"]
[TimeControl "180+2"]
[EndTime "13:50:52 PST"]
[Termination "Kislov_Oleg won by resignation"]

1. e4 {[%clk 0:02:59.1]} 1... c5 {[%clk 0:03:00.6]} 2. Nf3 {[%clk 0:02:59.7]}
2... Nc6 {[%clk 0:03:02.1]} 3. c3 {[%clk 0:03:00.6]} 3... d5 {[%clk 0:03:02.8]}
4. exd5 {[%clk 0:03:01.5]} 4... Qxd5 {[%clk 0:03:04.7]} 5. d4 {[%clk 0:03:02.9]}
5... Bf5 {[%clk 0:03:06.3]} 6. Be2 {[%clk 0:02:59.2]} 6... cxd4 {[%clk
0:03:02.8]} 7. cxd4 {[%clk 0:02:56.1]} 7... Bxb1 {[%clk 0:03:03.4]} 8. Rxb1
{[%clk 0:02:57.4]} 8... e6 {[%clk 0:03:04.8]} 9. a3 {[%clk 0:02:54.1]} 9... g6
{[%clk 0:03:05.9]} 10. O-O {[%clk 0:02:51.9]} 10... Bg7 {[%clk 0:03:07.4]} 11.
Be3 {[%clk 0:02:51.7]} 11... Nge7 {[%clk 0:03:08.7]} 12. Rc1 {[%clk 0:02:51.8]}
12... O-O {[%clk 0:03:09.5]} 13. Rc5 {[%clk 0:02:52.8]} 13... Qd6 {[%clk
0:03:09.9]} 14. Qd2 {[%clk 0:02:48.5]} 14... Rfd8 {[%clk 0:02:15.8]} 15. Rd1
{[%clk 0:02:44.4]} 15... Nf5 {[%clk 0:02:07.9]} 16. b4 {[%clk 0:02:34.1]} 16...
Ncxd4 {[%clk 0:02:00.2]} 17. Nxd4 {[%clk 0:02:25.4]} 17... Bxd4 {[%clk
0:01:53.6]} 18. Rxf5 {[%clk 0:02:01.8]} 18... gxf5 {[%clk 0:01:15.2]} 19. Bxd4
{[%clk 0:01:45.7]} 19... e5 {[%clk 0:01:00.8]} 20. Qg5+ {[%clk 0:01:45.5]} 20...
Qg6 {[%clk 0:01:02.1]} 21. Qxg6+ {[%clk 0:01:42.6]} 21... hxg6 {[%clk 0:01:04]}
22. Bxe5 {[%clk 0:01:40.8]} 22... Rxd1+ {[%clk 0:00:46]} 23. Bxd1 {[%clk
0:01:41.7]} 23... Re8 {[%clk 0:00:44.2]} 24. f4 {[%clk 0:01:42.2]} 24... f6
{[%clk 0:00:45.6]} 25. Bb3+ {[%clk 0:01:41.5]} 25... Kg7 {[%clk 0:00:47.2]} 26.
Bd4 {[%clk 0:01:40.3]} 26... a6 {[%clk 0:00:27.5]} 27. Kf2 {[%clk 0:01:39.3]}
27... Re4 {[%clk 0:00:24.6]} 28. Be3 {[%clk 0:01:40.1]} 28... Kf8 {[%clk
0:00:16.5]} 29. Bd5 {[%clk 0:01:40.1]} 29... Re7 {[%clk 0:00:16.7]} 30. Bc5
{[%clk 0:01:40.6]} 1-0

[Event "*** Titled Tuesday Blitz"]
[Site "Chess.com"]
[Date "2019.12.03"]
[Round "4"]
[White "Mikhail_Golubev"]
[Black "Indianlad"]
[Result "1-0"]
[WhiteElo "2610"]
[BlackElo "2884"]
[TimeControl "180+2"]
[EndTime "13:51:13 PST"]
[Termination "Mikhail_Golubev won by resignation"]

1. e4 {[%clk 0:03:01.9]} 1... c5 {[%clk 0:03:01.7]} 2. Nf3 {[%clk 0:03:02.2]}
2... d6 {[%clk 0:03:03.4]} 3. d4 {[%clk 0:03:03.2]} 3... cxd4 {[%clk 0:03:05.3]}
4. Nxd4 {[%clk 0:03:04.3]} 4... Nf6 {[%clk 0:03:06.9]} 5. Nc3 {[%clk 0:03:05.2]}
5... a6 {[%clk 0:03:08.6]} 6. Bc4 {[%clk 0:03:05.5]} 6... e6 {[%clk 0:03:09.6]}
7. Bb3 {[%clk 0:03:05.4]} 7... Nbd7 {[%clk 0:03:11.3]} 8. f4 {[%clk 0:03:02.3]}
8... Nc5 {[%clk 0:03:10.7]} 9. O-O {[%clk 0:03:01.9]} 9... Ncxe4 {[%clk
0:03:11.7]} 10. Nxe4 {[%clk 0:03:02.7]} 10... Nxe4 {[%clk 0:03:13.6]} 11. f5
{[%clk 0:03:03.3]} 11... e5 {[%clk 0:03:15.2]} 12. Qh5 {[%clk 0:03:00.7]} 12...
d5 {[%clk 0:03:11.2]} 13. Re1 {[%clk 0:03:00.9]} 13... Qc7 {[%clk 0:03:09.6]}
14. Bxd5 {[%clk 0:03:01.1]} 14... Nf6 {[%clk 0:03:08.3]} 15. Bxf7+ {[%clk
0:03:02]} 15... Qxf7 {[%clk 0:03:09.1]} 16. Rxe5+ {[%clk 0:03:02.9]} 16... Be7
{[%clk 0:03:09.6]} 17. Qe2 {[%clk 0:03:03.5]} 17... Bd7 {[%clk 0:02:57.8]} 18.
Bg5 {[%clk 0:03:03.8]} 18... Kf8 {[%clk 0:02:59.4]} 19. Re1 {[%clk 0:03:01.5]}
19... Bd6 {[%clk 0:02:50]} 20. Bxf6 {[%clk 0:02:40.5]} 20... Qxf6 {[%clk
0:02:48.7]} 21. Ne6+ {[%clk 0:02:35.7]} 21... Bxe6 {[%clk 0:02:37.5]} 22. Rxe6
{[%clk 0:02:29.9]} 22... Bc5+ {[%clk 0:02:15.8]} 23. Kh1 {[%clk 0:02:29.6]}
23... Qf7 {[%clk 0:02:16.2]} 24. Qe5 {[%clk 0:02:15.2]} 24... Rc8 {[%clk
0:01:22.5]} 25. f6 {[%clk 0:02:00.4]} 25... Kg8 {[%clk 0:01:18.9]} 26. fxg7
{[%clk 0:01:16.2]} 26... Qxg7 {[%clk 0:01:19.4]} 27. Rf6 {[%clk 0:00:59.1]}
27... Rf8 {[%clk 0:00:50.1]} 28. Qd5+ {[%clk 0:00:56.1]} 28... Rf7 {[%clk
0:00:51]} 29. Ref1 {[%clk 0:00:43.5]} 1-0

[Event "*** Titled Tuesday Blitz"]
[Site "Chess.com"]
[Date "2019.12.03"]
[Round "4"]
[White "MateusViageiro"]
[Black "eCztery"]
[Result "0-1"]
[WhiteElo "2173"]
[BlackElo "2412"]
[TimeControl "180+2"]
[EndTime "13:51:16 PST"]
[Termination "eCztery won by resignation"]

1. e4 {[%clk 0:03:01.8]} 1... c5 {[%clk 0:02:59.1]} 2. Nf3 {[%clk 0:03:02]} 2...
Nc6 {[%clk 0:03:00.5]} 3. Bb5 {[%clk 0:03:01.9]} 3... g6 {[%clk 0:03:01.7]} 4.
O-O {[%clk 0:03:01.9]} 4... Bg7 {[%clk 0:02:58.5]} 5. c3 {[%clk 0:03:02.2]} 5...
a6 {[%clk 0:02:56.7]} 6. Ba4 {[%clk 0:02:57.3]} 6... b5 {[%clk 0:02:54.3]} 7.
Bc2 {[%clk 0:02:57.3]} 7... d5 {[%clk 0:02:53.1]} 8. exd5 {[%clk 0:02:55.5]}
8... Qxd5 {[%clk 0:02:55]} 9. Re1 {[%clk 0:02:52.4]} 9... Nf6 {[%clk 0:02:44.9]}
10. h3 {[%clk 0:02:51.4]} 10... O-O {[%clk 0:02:42.6]} 11. a4 {[%clk 0:02:50.3]}
11... Bb7 {[%clk 0:02:29.7]} 12. Qe2 {[%clk 0:02:35.4]} 12... e5 {[%clk
0:02:12.6]} 13. axb5 {[%clk 0:02:32]} 13... axb5 {[%clk 0:02:14.5]} 14. Rxa8
{[%clk 0:02:30.4]} 14... Rxa8 {[%clk 0:02:16.4]} 15. Qxb5 {[%clk 0:02:25]} 15...
Ba6 {[%clk 0:02:16.3]} 16. Qa4 {[%clk 0:01:54.5]} 16... e4 {[%clk 0:01:59.2]}
17. Bxe4 {[%clk 0:01:51.8]} 17... Nxe4 {[%clk 0:02:01.1]} 18. Qxe4 {[%clk
0:01:51.1]} 18... Qxe4 {[%clk 0:02:01.1]} 19. Rxe4 {[%clk 0:01:47.1]} 19... Bd3
{[%clk 0:02:03]} 20. Re1 {[%clk 0:01:37.8]} 20... Bxb1 {[%clk 0:02:00.5]} 21. d4
{[%clk 0:01:38.7]} 21... cxd4 {[%clk 0:01:58.6]} 22. cxd4 {[%clk 0:01:39.2]}
22... Nxd4 {[%clk 0:02:00.5]} 23. Nxd4 {[%clk 0:01:37.5]} 23... Bxd4 {[%clk
0:01:59.8]} 24. Bh6 {[%clk 0:01:34.5]} 24... Bf5 {[%clk 0:01:53.7]} 25. g4
{[%clk 0:01:33.1]} 25... Be6 {[%clk 0:01:49.8]} 26. b3 {[%clk 0:01:32.2]} 26...
Ra1 {[%clk 0:01:46.6]} 27. Rxa1 {[%clk 0:01:30.4]} 27... Bxa1 {[%clk 0:01:48.5]}
28. b4 {[%clk 0:01:29.7]} 28... Bc3 {[%clk 0:01:41.3]} 29. b5 {[%clk 0:01:28]}
29... Bd4 {[%clk 0:01:40.4]} 30. Be3 {[%clk 0:01:15.4]} 30... Bxe3 {[%clk
0:01:36.4]} 31. fxe3 {[%clk 0:01:15.3]} 31... Kf8 {[%clk 0:01:38.3]} 32. e4
{[%clk 0:01:14.3]} 32... Ke7 {[%clk 0:01:39.2]} 33. Kf2 {[%clk 0:01:14]} 33...
Kd6 {[%clk 0:01:40]} 34. Ke3 {[%clk 0:01:14.6]} 34... Ke5 {[%clk 0:01:35.1]} 35.
b6 {[%clk 0:01:14.4]} 35... Bc8 {[%clk 0:01:31.2]} 36. g5 {[%clk 0:01:09.9]}
36... Bb7 {[%clk 0:01:30.1]} 37. h4 {[%clk 0:01:09.5]} 37... Bxe4 {[%clk
0:01:27.2]} 0-1

[Event "*** Titled Tuesday Blitz"]
[Site "Chess.com"]
[Date "2019.12.03"]
[Round "4"]
[White "WorldChampionBulletChess"]
[Black "boasovietica"]
[Result "0-1"]
[WhiteElo "2093"]
[BlackElo "2393"]
[TimeControl "180+2"]
[EndTime "13:51:23 PST"]
[Termination "boasovietica won on time"]

1. d4 {[%clk 0:02:26.8]} 1... Nf6 {[%clk 0:02:59.1]} 2. b3 {[%clk 0:02:28.5]}
2... g6 {[%clk 0:02:59.4]} 3. Nf3 {[%clk 0:02:29.9]} 3... Bg7 {[%clk 0:02:59.2]}
4. Bb2 {[%clk 0:02:31.8]} 4... O-O {[%clk 0:02:57.6]} 5. Nbd2 {[%clk 0:02:26.4]}
5... d6 {[%clk 0:02:51.4]} 6. e4 {[%clk 0:02:25.1]} 6... Nc6 {[%clk 0:02:52.3]}
7. Be2 {[%clk 0:02:04.8]} 7... e5 {[%clk 0:02:51.5]} 8. d5 {[%clk 0:01:57.2]}
8... Nd4 {[%clk 0:02:27.1]} 9. Nxd4 {[%clk 0:01:51.2]} 9... exd4 {[%clk
0:02:26.8]} 10. Bxd4 {[%clk 0:01:53.1]} 10... Re8 {[%clk 0:02:26.9]} 11. f3
{[%clk 0:01:34.7]} 11... Nxd5 {[%clk 0:02:10.3]} 12. Bxg7 {[%clk 0:01:02.6]}
12... Ne3 {[%clk 0:02:10.2]} 13. Qb1 {[%clk 0:01:02.9]} 13... Kxg7 {[%clk
0:02:05.2]} 14. Kf2 {[%clk 0:01:01.7]} 14... Nxg2 {[%clk 0:01:54.8]} 15. Qb2+
{[%clk 0:00:58.3]} 15... Kg8 {[%clk 0:01:54.4]} 16. Kxg2 {[%clk 0:00:44.1]}
16... Qg5+ {[%clk 0:01:54]} 17. Kf2 {[%clk 0:00:43.6]} 17... Qxd2 {[%clk
0:01:54.2]} 18. Rad1 {[%clk 0:00:36.6]} 18... Qf4 {[%clk 0:01:53.8]} 19. h4
{[%clk 0:00:32.4]} 19... h5 {[%clk 0:01:44]} 20. Qd4 {[%clk 0:00:27]} 20... Bd7
{[%clk 0:01:32]} 21. Bc4 {[%clk 0:00:18.9]} 21... Be6 {[%clk 0:01:30.1]} 22. Rd3
{[%clk 0:00:07.6]} 22... Bxc4 {[%clk 0:01:27.2]} 23. Qxc4 {[%clk 0:00:09.5]}
23... Re7 {[%clk 0:01:25.2]} 24. Qd5 {[%clk 0:00:08.1]} 24... Rae8 {[%clk
0:01:13.2]} 25. Re3 {[%clk 0:00:05.3]} 25... c6 {[%clk 0:01:10.9]} 0-1

[Event "*** Titled Tuesday Blitz"]
[Site "Chess.com"]
[Date "2019.12.03"]
[Round "4"]
[White "ChessWarrior7197"]
[Black "kallerotmg"]
[Result "0-1"]
[WhiteElo "2908"]
[BlackElo "2142"]
[TimeControl "180+2"]
[EndTime "13:51:34 PST"]
[Termination "kallerotmg won by resignation"]

1. e4 {[%clk 0:03:01.9]} 1... c5 {[%clk 0:02:59.4]} 2. Nf3 {[%clk 0:03:02.1]}
2... d6 {[%clk 0:02:59.4]} 3. d4 {[%clk 0:03:03.3]} 3... cxd4 {[%clk 0:03:01.2]}
4. Nxd4 {[%clk 0:03:05.2]} 4... Nf6 {[%clk 0:03:02.5]} 5. Nc3 {[%clk 0:03:06.7]}
5... g6 {[%clk 0:02:59]} 6. Be3 {[%clk 0:03:01.4]} 6... Bg7 {[%clk 0:02:57.9]}
7. f3 {[%clk 0:03:02.5]} 7... O-O {[%clk 0:02:56.3]} 8. Qd2 {[%clk 0:03:03.9]}
8... Nc6 {[%clk 0:02:56.6]} 9. O-O-O {[%clk 0:03:05.4]} 9... d5 {[%clk
0:02:55.9]} 10. exd5 {[%clk 0:03:07]} 10... Nxd5 {[%clk 0:02:55.8]} 11. Nxc6
{[%clk 0:03:08.6]} 11... bxc6 {[%clk 0:02:56.5]} 12. Bd4 {[%clk 0:03:09.9]}
12... e5 {[%clk 0:02:56]} 13. Bc5 {[%clk 0:03:10.9]} 13... Be6 {[%clk 0:02:57]}
14. Ne4 {[%clk 0:03:09.9]} 14... Re8 {[%clk 0:02:56.4]} 15. Kb1 {[%clk
0:03:06.4]} 15... f5 {[%clk 0:02:54.3]} 16. Ng5 {[%clk 0:03:03.3]} 16... Bc8
{[%clk 0:02:42.5]} 17. c4 {[%clk 0:03:01.5]} 17... Bf6 {[%clk 0:02:26.1]} 18.
Nxh7 {[%clk 0:03:00.1]} 18... Kxh7 {[%clk 0:02:23.1]} 19. cxd5 {[%clk
0:03:01.4]} 19... cxd5 {[%clk 0:02:17.9]} 20. Qxd5 {[%clk 0:03:03.3]} 20... Qxd5
{[%clk 0:02:14.4]} 21. Rxd5 {[%clk 0:03:05.2]} 21... Be6 {[%clk 0:02:13.2]} 22.
Rd1 {[%clk 0:03:03.9]} 22... Rec8 {[%clk 0:02:09.7]} 23. Bd6 {[%clk 0:03:01.3]}
23... Rc6 {[%clk 0:02:05.7]} 24. Bb5 {[%clk 0:02:52.5]} 24... Rb6 {[%clk
0:02:04.4]} 25. a4 {[%clk 0:02:52.3]} 25... Bb3 {[%clk 0:02:00.6]} 26. Rd3
{[%clk 0:02:53.5]} 26... Rd8 {[%clk 0:01:58.3]} 27. Rxb3 {[%clk 0:02:48.8]}
27... Rdxd6 {[%clk 0:01:56]} 28. Rc1 {[%clk 0:02:48.8]} 28... Kh6 {[%clk
0:01:53.1]} 29. Rc2 {[%clk 0:02:41.7]} 29... a6 {[%clk 0:01:52]} 30. Bc4 {[%clk
0:02:40.5]} 30... Rd1+ {[%clk 0:01:50.4]} 31. Ka2 {[%clk 0:02:41]} 31... Rc6
{[%clk 0:01:46.2]} 32. Rb8 {[%clk 0:02:26.9]} 32... Rd4 {[%clk 0:01:40.1]} 33.
Bb3 {[%clk 0:02:27.2]} 33... Rxc2 {[%clk 0:01:35.3]} 34. Bxc2 {[%clk 0:02:29.1]}
34... Rd2 {[%clk 0:01:35.6]} 35. Bb3 {[%clk 0:02:26.4]} 35... e4 {[%clk
0:01:34.5]} 36. Bc4 {[%clk 0:02:24.6]} 36... a5 {[%clk 0:01:33]} 37. fxe4 {[%clk
0:02:25.3]} 37... fxe4 {[%clk 0:01:32.9]} 38. Kb1 {[%clk 0:02:07.3]} 38... e3
{[%clk 0:01:28.2]} 39. Kc1 {[%clk 0:02:07.8]} 39... Rxg2 {[%clk 0:01:28.5]} 40.
Re8 {[%clk 0:01:54.6]} 40... Rxh2 {[%clk 0:01:15.1]} 41. b3 {[%clk 0:01:53.8]}
41... Bg5 {[%clk 0:00:52.1]} 42. Rh8+ {[%clk 0:01:53.4]} 42... Kg7 {[%clk
0:00:52.3]} 43. Re8 {[%clk 0:01:51.3]} 43... e2+ {[%clk 0:00:51]} 0-1

[Event "*** Titled Tuesday Blitz"]
[Site "Chess.com"]
[Date "2019.12.03"]
[Round "4"]
[White "Orest_Vovk"]
[Black "Fiona"]
[Result "1-0"]
[WhiteElo "2314"]
[BlackElo "2050"]
[TimeControl "180+2"]
[EndTime "13:51:39 PST"]
[Termination "Orest_Vovk won by resignation"]

1. d4 {[%clk 0:03:01.9]} 1... d5 {[%clk 0:02:53.7]} 2. c4 {[%clk 0:02:59.6]}
2... e6 {[%clk 0:02:53.1]} 3. Nc3 {[%clk 0:02:55.1]} 3... Be7 {[%clk 0:02:49.5]}
4. cxd5 {[%clk 0:02:38.4]} 4... exd5 {[%clk 0:02:50.4]} 5. Bf4 {[%clk
0:02:37.5]} 5... c6 {[%clk 0:02:49.5]} 6. e3 {[%clk 0:02:26.8]} 6... Nf6 {[%clk
0:02:48.1]} 7. Nf3 {[%clk 0:02:27.8]} 7... h6 {[%clk 0:02:42.1]} 8. Bd3 {[%clk
0:02:29.7]} 8... O-O {[%clk 0:02:34.9]} 9. Ne5 {[%clk 0:02:31.6]} 9... Re8
{[%clk 0:02:31.8]} 10. O-O {[%clk 0:02:31.9]} 10... Nbd7 {[%clk 0:02:32.4]} 11.
h3 {[%clk 0:02:29]} 11... Nf8 {[%clk 0:02:27.3]} 12. Rc1 {[%clk 0:02:23.5]}
12... Bd6 {[%clk 0:02:19]} 13. Bb1 {[%clk 0:02:23.5]} 13... Qe7 {[%clk
0:01:40.6]} 14. Qc2 {[%clk 0:02:15]} 14... Nh5 {[%clk 0:01:26.1]} 15. Bh2 {[%clk
0:02:07.6]} 15... Qh4 {[%clk 0:01:13.5]} 16. f4 {[%clk 0:01:47.2]} 16... g6
{[%clk 0:00:50.5]} 17. Qf2 {[%clk 0:01:33.4]} 17... Qxf2+ {[%clk 0:00:40.3]} 18.
Rxf2 {[%clk 0:01:29.3]} 18... Kg7 {[%clk 0:00:41.2]} 19. g4 {[%clk 0:01:17.9]}
19... Nf6 {[%clk 0:00:40.7]} 20. Rcf1 {[%clk 0:01:14.9]} 20... h5 {[%clk
0:00:38.4]} 21. f5 {[%clk 0:01:11.1]} 21... g5 {[%clk 0:00:23.7]} 22. gxh5
{[%clk 0:00:54]} 22... Nxh5 {[%clk 0:00:25.6]} 23. f6+ {[%clk 0:00:54.7]} 23...
Kg8 {[%clk 0:00:24.9]} 24. Rg2 {[%clk 0:00:54.7]} 24... Ne6 {[%clk 0:00:15.4]}
25. Rf5 {[%clk 0:00:55.5]} 25... Bxe5 {[%clk 0:00:13.4]} 26. Rfxg5+ {[%clk
0:00:52.9]} 26... Nxg5 {[%clk 0:00:12.4]} 27. Rxg5+ {[%clk 0:00:54]} 27... Kf8
{[%clk 0:00:14.2]} 28. Bxe5 {[%clk 0:00:54.7]} 1-0